{"text_format":"3","workbook":"xlsx","n_sheets":5,"sheets":["4 класс","5 класс","6 класс","7 класс","8 класс"],"not_rendered":{"defined_names":6},"read":"whole","date_system":"1900"}

{"sheet":"4 класс","index":0,"n_rows":45,"n_cols":13,"rows_kept":45,"merged":[[0,1,0,10]]}
[null,"Список приглашённых на ЗЭ РОШ по русскому языку 4 класс. 2024-2025 уч.год "]
[]
["№","Муниципалитет","Полное наименование ОУ по уставу","Фамилия","Имя","Отчество","Фамилия Имя Отчество","Класс обучения","Класс участия","Итоговый балл","Максимальный балл","Фамилия, имя, отчество педагога, подготовившего участника олимпиады","Полное наименование образовательного учреждения (по уставу)"]
[1,"Азнакаевский район","Муниципальное бюджетное общеобразовательное учреждение «Средняя общеобразовательная №2 города Азнакаево» Азнакаевского муниципального района  Республики Татарстан","Габдулхаков","Саид","Рефолевич","Габдулхаков Саид Рефолевич",4,4,60,65,"Ибрагимова Гульнара Курвантаевна","МБОУ \"СОШ #2 г.Азнакаево\" Азнакаевского муниципального района РТ"]
[2,"Азнакаевский район","Муниципальное бюджетное общеобразовательное учреждение «Лицей №4 города Азнакаево» Азнакаевского муниципального района Республики Татарстан«Лицей № 4 г.Азнакаево»","Миргасимов","Радель","Артурович","Миргасимов Радель Артурович",4,4,60,65,"Имамутдинова Лейсан Ринатовна","МБОУ \"Лицей №4 г. Азнакаево\" АМР РТ"]
[3,"Азнакаевский район","Муниципальное бюджетное общеобразовательное учреждение «Лицей №4 города Азнакаево» Азнакаевского муниципального района Республики Татарстан«Лицей № 4 г.Азнакаево»","Гарайшин","Раяз","Рамилевич","Гарайшин Раяз Рамилевич",4,4,57,65,"Имамутдинова Лейсан Ринатовна","МБОУ \"Лицей №4 г. Азнакаево\" АМР РТ"]
[4,"Азнакаевский район","Муниципальное бюджетное общеобразовательное учреждение «Лицей №4 города Азнакаево» Азнакаевского муниципального района Республики Татарстан«Лицей № 4 г.Азнакаево»","Мухаметшин","Эмиль","Нафисович","Мухаметшин Эмиль Нафисович",4,4,56,65,"Ибатова Сюмбель Рашатовна","МБОУ \"Лицей №4 г. Азнакаево\" АМР РТ"]
[5,"Азнакаевский район","Муниципальное бюджетное общеобразовательное учреждение «Средняя общеобразовательная школа №5 с углубленным изучением английского языка» города Азнакаево Азнакаевского муниципального района Республики Татарстан","Гумерова","Ирада","Расимовна","Гумерова Ирада Расимовна",4,4,55,65,"Ануфриева Татьяна Михайловна","МБОУ \"СОШ №5 г. Азнакаево\" РТ"]
[6,"Азнакаевский район","муниципальное бюджетное общеобразовательное учреждение \"Средняя общеобразовательная школа №6 г. Азнакаево» Азнакаевского муниципального района Республики Татарстан","Хайруллин","Ранил","Русланович","Хайруллин Ранил Русланович",4,4,59,65,"Хаертдинова З.ф.","МБОУ \"СОШ №6 г. Азнакаево\" РТ"]
[7,"Азнакаевский район","муниципальное бюджетное общеобразовательное учреждение \"Средняя общеобразовательная школа №6 г. Азнакаево» Азнакаевского муниципального района Республики Татарстан","Яхшигулова","Риана","Рафисовна","Яхшигулова Риана Рафисовна",4,4,56,65,"Хаертдинова З.ф.","МБОУ \"СОШ №6 г. Азнакаево\" РТ"]
[8,"Азнакаевский район","«Муниципальное бюджетное общеобразовательное учреждение \"Средняя общеобразовательная школа №7 города Азнакаево\"   Азнакаево» Азнакаевского муниципального района Республики Татарстан","Никулина","Полина","Александровна","Никулина Полина Александровна",4,4,60,65,"Харисова Эльвира Арслангареевна","МБОУ \"СОШ №7 г. Азнакаево\""]
[9,"Азнакаевский район","Муниципальное бюджетное общеобразовательное учреждение \"Средняя общеобразовательная школа №8  г. Азнакаево» Республики Татарстан","Харрасов","Рамзиль","Рузалинович","Харрасов Рамзиль Рузалинович",4,4,57,65,"Абдуллина Гульнара Ильясовна","МБОУ \"СОШ №8 г. Азнакаево\" РТ"]
[10,"Азнакаевский район","Муниципальное бюджетное общеобразовательное учреждение \"Средняя общеобразовательная школа №9 города Азнакаево\" Азнакаевского муниципального района Республики Татарстан","Гильванова","Зарина","Азатовна","Гильванова Зарина Азатовна",4,4,55,65,"Галиева Гульнара Атласовна","МБОУ \"СОШ №9 г.Азнакаево\" РТ"]
[11,"Бугульминский район","Муниципальное бюджетное общеобразовательное учреждение средняя общеобразовательная школа № 1 с углубленным изучением отдельных предметов Бугульминского муниципального района Республики Татарстан","Абрамова","Дарья","Петровна","Абрамова Дарья Петровна",4,4,48,65,"Басынина Лариса Николаевна","МБОУ СОШ №1 с УИОП г. Бугульмы РТ"]
[12,"Бугульминский район","Муниципальное бюджетное общеобразовательное учреждение средняя общеобразовательная школа № 1 с углубленным изучением отдельных предметов Бугульминского муниципального района Республики Татарстан","Лапшова","София","Валерьевна","Лапшова София Валерьевна",4,4,45,65,"Басынина Л.н.","МБОУ СОШ № 1"]
[13,"Бугульминский район","Муниципальное общеобразовательное учреждение лицей №2 Бугульминского муниципального района Республики Татарстан","ВАЖНОВА","ПОЛИНА","СЕРГЕЕВНА","ВАЖНОВА ПОЛИНА СЕРГЕЕВНА",4,4,46,65,"Гиматдинова Рамиля Нафисовна","МБОУ лицей №2"]
[14,"Зеленодольский район","Муниципальное бюджетное общеобразовательное учреждение «Лицей №1 Зеленодольского муниципального района РТ»","Цишейко","Алексей","Семенович","Цишейко Алексей Семенович",4,4,49.5,65,"Шибалова Наталья Владимировна","МБОУ «Лицей №1 ЗМР РТ»"]
[15,"Зеленодольский район","Муниципальное бюджетное общеобразовательное учреждение «Лицей №1 Зеленодольского муниципального района РТ»","Кузнецова","Есения","Романовна","Кузнецова Есения Романовна",4,4,48.5,65,"Шибалова Наталья Владимировна","МБОУ «Лицей №1 ЗМР РТ»"]
[16,"Зеленодольский район","Муниципальное бюджетное общеобразовательное учреждение «Гимназия №3 Зеленодольского муниципального района Республики Татарстан»","Абдуллин","Аскар","Русланович","Абдуллин Аскар Русланович",4,4,50,65,"Алексеева Светлана Геннадьевна","МБОУ «Гимназия №3 ЗМР РТ»"]
[17,"Зеленодольский район","Муниципальное бюджетное общеобразовательное учреждение «Гимназия №3 Зеленодольского муниципального района Республики Татарстан»","Зарипов","Салим","Ильдарович","Зарипов Салим Ильдарович",4,4,47,65,"Алексеева Светлана Геннадьевна","МБОУ «Гимназия №3 ЗМР РТ»"]
[18,"Зеленодольский район","Муниципальное бюджетное общеобразовательное учреждение «Гимназия №3 Зеленодольского муниципального района Республики Татарстан»","Лисовский","Никита","Алексеевич","Лисовский Никита Алексеевич",4,4,46.5,65,"Алексеева Светлана Геннадьевна","МБОУ «Гимназия №3 ЗМР РТ»"]
[19,"Лениногорский район","Муниципальное бюджетное общеобразовательное учреждение \"Средняя общеобразовательная школа №7 г. Лениногорска\" муниципального образования \"Лениногорский муниципальный район\" РТ","Хаерова","София","Фирдинантовна","Хаерова София Фирдинантовна",4,4,45,65,"Хуббатуллина Кадрия Рифовна","МБОУ СОШ №7"]
[20,"Мамадышский район","Муниципальное бюджетное общеобразовательное учреждение \"Центр образования Лицей №2 имени академика Камиля Ахметовича Валиева города Мамадыш\" Мамадышского муниципального района Республики Татарстан","Шаймухаметова","Алла","Валерьевна","Шаймухаметова Алла Валерьевна",4,4,57,65,"Бербасова Людмила Ивановна","Муниципальное бюджетное общеобразовательное учреждение \"Центр образования Лицей №2 имени академика К.А. Валиева города Мамадыш\""]
[21,"Мамадышский район","Муниципальное бюджетное общеобразовательное учреждение \"Средняя общеобразовательная школа №3 города Мамадыш\" Мамадышского муниципального района Республики Татарстан","Телешева","Екатерина","Сергеевна","Телешева Екатерина Сергеевна",4,4,56,65,"Потапова Светлана Николаевна","Муниципальное бюджетное общеобразовательное учреждение \"Средняя общеобразовательная школа №3 города Мамадыш\" Мамадышского муниципального района Республики Татарстан."]
[22,"Мамадышский район","МБОУ \"Красногорская СОШ\"","Пестрякова","Полина","Павловна","Пестрякова Полина Павловна",4,4,59,65,"Плисова Елена Дмитриевна","Муниципальное бюджетное общеобразовательное учреждение \"Красногорская средняя общеобразовательная школа\""]
[23,"Московский район","Муниципальное бюджетное общеобразовательное учреждение \"Гимназия №102 имени М.С.Устиновой\" Московского района города Казани","Барабанова","Виктория","Алексеевна","Барабанова Виктория Алексеевна",4,4,58,65,"Потапова Мария Сергеевна","МБОУ \"Гимназия №102 имени М.С.Устиновой\""]
[24,"Московский район","Муниципальное бюджетное общеобразовательное учреждение \"Гимназия №102 имени М.С.Устиновой\" Московского района города Казани","Николаев","Николай","Михайлович","Николаев Николай Михайлович",4,4,49,65,"Потапова Мария Сергеевна","МБОУ \"Гимназия №102 имени М.С.Устиновой\""]
[25,"Набережные Челны","Муниципальное бюджетное общеобразовательное учреждение \"Гимназия №26\"","Шарипов","Муса","Фаритович","Шарипов Муса Фаритович",4,4,53,65,"Савина Чулпан Галимзяновна","Муниципальное бюджетное общеобразовательное учреждение \"Гимназия №26\"г.Набережные Челны Республики Татарстан"]
[26,"Набережные Челны","муниципальное бюджетное общеобразовательное учреждение \"Средняя общеобразовательная школа № 39\"","Галеева","Альбина","Наилевна","Галеева Альбина Наилевна",4,4,48,65,"Капалыгина Роза Гумеровна","Муниципальное бюджетное общеобразовательное учреждение \"Средняя общеобразовательная школа № 39\" г.Набережные Челны Республики Татарстан"]
[27,"Набережные Челны","Муниципальное бюджетное общеобразовательное учреждение\"Центр образования - Гимназия №57 \"Притяжение\"","Моисеев","Захар","Александрович","Моисеев Захар Александрович",4,4,48,65,"Атнашева Лилия Владимировна","Муниципальное бюджетное общеобразовательное учреждение \"Центр образования - Гимназия №57 \"Притяжение\" г.Набережные Челны Республики Татарстан"]
[28,"Набережные Челны","Муниципальное автономное\nобщеобразовательное учреждение города Набережные Челны «Гимназия №76»","Медведева","Софья","Михайловна","Медведева Софья Михайловна",4,4,45,65,"Земскова Наталья Юрьевна","Муниципальное автономное ощеобразовательное учреждение города Набережные Челны \"Гимназия №76\" Республики Татарстан"]
[29,"Набережные Челны","Муниципальное бюджетное общеобразовательное учреждение \"Пушкинский пролицей №78\"","Яруничева","Таисия","Денисовна","Яруничева Таисия Денисовна",4,4,48,65,"Карпова Светлана Ивановна","Муниципальное бюджетное общеобразовательное учреждение \"Пушкинский пролицей №78\" города Набережные Челны Республики Татарстан"]
[30,"Нижнекамский район","Муниципальное бюджетное общеобразовательное учреждение \"Гимназия №32\" Нижнекамского муниципального района Республики Татарстан","Гиззатуллина","Ралина","Рифатовна","Гиззатуллина Ралина Рифатовна",4,4,49,65,"Карпова Наталья Николаевна","МБОУ \"Гимназия №32\""]
[31,"Нижнекамский район","Муниципальное бюджетное общеобразовательное учреждение \"Гимназия №2\" имени Баки Урманче","Гимадеева","Гульназ","Айратовна","Гимадеева Гульназ Айратовна",4,4,55,65,"Сайфутдинова Нурия Нурисламовна","МБОУ \"Гимназия №2\" имени Баки Урманче"]
[32,"Ново-Савиновский район","Муниципальное бюджетное общеобразовательное учреждение \"Гимназия №7 имени Героя России А.В.Козина\" Ново-Савиновского района г.Казани.","Забиров","Камал","Ринатович","Забиров Камал Ринатович",4,4,45,65,"Колобова Марина Владимировна","МБОУ \"Гимназия №7\""]
[33,"Ново-Савиновский район","Муниципальное бюджетное общеобразовательное учреждение \"Гимназия №155 с татарским языком обучения\" Ново-Савиновского района г. Казани","Хакимова","Марьям","Артуровна","Хакимова Марьям Артуровна",4,4,47,65,"Ганиева Райхон Ильгизовна","МБОУ \"Гимназия №155\""]
[34,"Ново-Савиновский район","Муниципальное автономное общеобразовательное учреждение \"Основная общеобразовательная школа №30\" Ново-Савиновского района г. Казани","Хадиева","Лейла","Камилевна","Хадиева Лейла Камилевна",4,4,57,65,"Яфасова Милеуша Хасановна","МАОУ \"Школа №30\""]
[35,"Нурлатский район","Муниципальное автономное общеобразовательное учреждение \"Средняя общеобразовательная школа № 3\" г.Нурлат","Чукашеева","Ксения","Александровна","Чукашеева Ксения Александровна",4,4,51,65,"Тухватуллина Лилия Валерьевна","МАОУ \"СОШ № 3\" г. Нурлат РТ"]
[36,"Пестречинский район","МБОУ «Многопрофильный лицей имени Героя Советского Союза Г.К. Камалеева» жилого комплекса «Усадьба Царево» с. Новое Шигалеево Пестречинского муниципального района Республики Татарстан","Идрисов","Искандер","Алмазович","Идрисов Искандер Алмазович",4,4,53,65,"Шакурова Эльза Рафиковна","Муниципальное бюджетное образовательное учреждение «Многопрофильный лицей имени Героя Советского Союза Г.К. Камалеева» жилого комплекса «Усадьба Царево» с. Новое Шигалеево Пестречинского муниципального района Республики"]
[37,"Пестречинский район","МБОУ «Многопрофильный лицей имени Героя Советского Союза Г.К. Камалеева» жилого комплекса «Усадьба Царево» с. Новое Шигалеево Пестречинского муниципального района Республики Татарстан","Азиханова","Аиша","Динисламовна","Азиханова Аиша Динисламовна",4,4,51,65,"Акбулатова Светлана Валерьевна","Муниципальное бюджетное образовательное учреждение «Многопрофильный лицей имени Героя Советского Союза Г.К. Камалеева» жилого комплекса «Усадьба Царево» с. Новое Шигалеево Пестречинского муниципального района Республики"]
[38,"Приволжский район","Муниципальное бюджетное общеобразовательное учреждение \"Лицей №83 - Центр образования\" Приволжского района г. Казани","Саидова","Динара","Булатовна","Саидова Динара Булатовна",4,4,49,65,"Ахмадиева Гульназ Наилевна","МБОУ \"Лицей №83-Центр образования\""]
[39,"Приволжский район","Муниципальное бюджетное общеобразовательное учреждение \"Многопрофильный лицей №186 - \"Перспектива\" Приволжского района г.Казани","Ошкина","Анна","Николаевна","Ошкина Анна Николаевна",4,4,45,65,"Лихачева Ольга Александровна","МБОУ \"Лицей №186-\"Перспектива\""]
[40,"Советский район","Муниципальное бюджетное общеобразовательное учреждение \"Гимназия №183\" Советского района г.Казани","Билалова","Зарина","Айратовна","Билалова Зарина Айратовна",4,4,48,65,"Юсупова Чулпан Гомаровна","МБОУ \"Гимназия №183\""]
[41,"Советский район","Муниципальное бюджетное общеобразовательное учреждение \"Многопрофильный лицей №187\" Советского района г.Казани","Садыков","Тимур","Искандерович","Садыков Тимур Искандерович",4,4,48,65,"Евлампиева Маргарита Владимировна","МБОУ \"Многопрофильный лицей №187\""]
[42,"Черемшанский район","Муниципальное бюджетное общеобразовательное учреждение \"Черемшанская средняя общеобразовательная школа №1 имени Петра Семеновича Курасанова\"","Джалилова","Мария","Джамиловна","Джалилова Мария Джамиловна",4,4,50,65,"Миронова Людмила Николаевна","МБОУ \"Черемшанская СОШ №1 им. П.С. Курасанова\""]

{"sheet":"5 класс","index":1,"n_rows":49,"n_cols":14,"rows_kept":49,"merged":[[0,0,0,13]]}
["Список приглашённых на ЗЭ РОШ по русскому языку  5 класс. 2024-2025 уч.год "]
[]
["№","Муниципалитет","Полное наименование ОУ по уставу","Фамилия","Имя","Отчество","Фамилия Имя Отчество","Класс обучения","Класс участия","Итоговый балл","Максимальный балл","Победитель/призёр заключительного этапа 2023-2024 уч. г.","Фамилия, имя, отчество педагога, подготовившего участника олимпиады","Полное наименование образовательного учреждения (по уставу)"]
[1,"Авиастроительный район","Муниципальное автономное общеобразовательное учреждение \"Гимназия №37\" Авиастроительного района г. Казани","Королева","Александра","Николаевна","Королева Александра Николаевна",5,5,46,73,null,"Желонкина Людмила Владимировна","МАОУ \"Гимназия №37\""]
[2,"Азнакаевский район","МБОУ «Средняя общеобразовательная школа №7 города Азнакаево» Азнакаевского муниципального района Республики Татарстан","Гумерова","Риана","Ильдаровна","Гумерова Риана Ильдаровна",4,4,null,null,"призёр","Рахматуллина Римма Мирхатовна","МБОУ «Средняя общеобразовательная школа №7 города Азнакаево»  Азнакаевского муниципального района Республики Татарстан"]
[3,"Азнакаевский район","Муниципальное бюджетное общеобразовательное учреждение «Лицей №4 города Азнакаево» Азнакаевского муниципального района Республики Татарстан«Лицей № 4 г.Азнакаево»","Валиева","Амелия","Айнуровна","Валиева Амелия Айнуровна",5,5,59,73,null,"Шарипова Зиля Тагировна","МБОУ \"Лицей №4 г. Азнакаево\" АМР РТ"]
[4,"Азнакаевский район","Муниципальное бюджетное общеобразовательное учреждение «Средняя общеобразовательная школа №5 с углубленным изучением английского языка» города Азнакаево Азнакаевского муниципального района Республики Татарстан","Ахмадиев","Ханиф","Ленарович","Ахмадиев Ханиф Ленарович",5,5,57,73,null,"Галиева Гульназ Мунавировна","МБОУ \"СОШ №5 г. Азнакаево\" РТ"]
[5,"Азнакаевский район","Муниципальное бюджетное общеобразовательное учреждение \"Средняя общеобразовательная школа №9 города Азнакаево\" Азнакаевского муниципального района Республики Татарстан","Гайнутдинов","Ислам","Ленарович","Гайнутдинов Ислам Ленарович",5,5,57,73,null,"Зайдуллина Гульнара Мунавировна","МБОУ \"СОШ №9 г.Азнакаево\" РТ"]
[6,"Альметьевский район","МАОУ - Гимназия №5","Дьяконова","Лидия","Александровна","Дьяконова Лидия Александровна",5,5,46,73,null,"Языкова Галина Николаевна","МАОУ \"Гимназия №5\" г. Альметьевск РТ"]
[7,"Арский район","Муниципальное бюджетное общеобразовательное учреждение - Арская гимназия №5 Арского муниципального района Республики Татарстан","Мингазов","Данияр","Русланович","Мингазов Данияр Русланович",5,5,46,73,null,"Сибгатуллина Рамиля Шамсиевна","МБОУ - Арская гимназия №5"]
[8,"Атнинский район","МБОУ «Кубянская средняя общеобразовательная школа» Атнинского муниципального района Республики Татарстан","Василова","Алия","Халиловна","Василова Алия Халиловна",4,4,null,null,"призёр","Гатауллина Гульназ Рахимановна","МБОУ «Кубянская средняя общеобразовательная школа» Атнинского муниципального района Республики Татарстан"]
[9,"Бавлинский район","Муниципальное автономное общеобразовательное учреждение средняя общеобразовательная школа №5 Бавлинского муниципального района Республики Татарстан","Абдуллина","Амина","Руслановна","Абдуллина Амина Руслановна",5,5,49,73,null,"Гимранова Галия Мазитовна","Муниципальное автономное общеобразовательное учреждение средняя общеобразовательная школа №5 Бавлинского муниципального района Республики Татарстан"]
[10,"Бугульминский район","Муниципальное бюджетное общеобразовательное учреждение средняя общеобразовательная школа №3 с углубленным изучением отдельных предметов Бугульминского муниципального района Республики татарстан","Ясавиева","Сабина","Марсовна","Ясавиева Сабина Марсовна",5,5,55,73,null,"Игошина Лариса Борисовна","МБОУ СОШ №3 Бугульминского муниципального района РТ"]
[11,"Бугульминский район","Муниципальное  бюджетное общеобразовательное учреждение  средняя общеобразовательная школа №6 с углубленным изучением отдельных предметов Бугульминского муниципального района  Республики Татарстан","Булгакова","Белла","Андреевна","Булгакова Белла Андреевна",5,5,54,73,null,"Игнатьева Дарья Александровна","МБОУ СОШ №6"]
[12,"Вахитовский район","Муниципальное автономное общеобразовательное учреждение для детей, проявивших выдающиеся способности \"Средняя общеобразовательная школа-интернат \"Специализированный олимпиадно-научный центр \"СОлНЦе\" Вахитовского района г.Казани","Шияпова","Зарина","Рамилевна","Шияпова Зарина Рамилевна",5,5,55.5,73,null,"Аглуллина Аида Ринатовна","МАОУ СОШИ \"СОлНЦе\""]
[13,"Вахитовский район","Муниципальное автономное общеобразовательное учреждение для детей, проявивших выдающиеся способности \"Средняя общеобразовательная школа-интернат \"Специализированный олимпиадно-научный центр \"СОлНЦе\" Вахитовского района г.Казани","Ибатуллина","София","Айратовна","Ибатуллина София Айратовна",5,5,50,73,null,"Аглуллина Аида Ринатовна","МАОУ СОШИ \"СОлНЦе\""]
[14,"Вахитовский район","Муниципальное автономное общеобразовательное учреждение \"Средняя общеобразовательная школа №18 с углубленным изучением английского языка\" Вахитовского района города Казани","Душин","Михаил","Николаевич","Душин Михаил Николаевич",5,5,58,73,null,"Аникина Елена Антоновна","МАОУ \"Школа №18\""]
[15,"Вахитовский район","Муниципальное бюджетное общеобразовательное учреждение \"Гимназия №27 с татарским языком обучения имени Хади Такташа\" Вахитовского района г.Казани","Фатыхова","Зиля","Ильдаровна","Фатыхова Зиля Ильдаровна",5,5,47,73,null,"Зарипова Лейсан Ильгизовна","МБОУ \"Гимназия №27\""]
[16,"Казань, Ново-Савиновский район","МБОУ «Средняя общеобразовательная школа №85 с углубленным изучением отдельных предметов» Ново-Савиновского района г. Казани","Зеленихина","Александра","Ильинична","Зеленихина Александра Ильинична",4,4,null,null,"призёр","Гимадеева Светлана Владимировна","МБОУ «Средняя общеобразовательная школа №85 с углубленным изучением отдельных предметов» Ново-Савиновского района г. Казани"]
[17,"Кайбицкий район","Муниципальное бюджетное общеобразовательное учреждение «Большекайбицкая средняя общеобразовательная школа - центр образования цифрового и гуманитарного профилей Кайбицкого муниципального района Республики Татарстан»","Гараев","Амир","Айратович","Гараев Амир Айратович",5,5,59,73,null,"Юсупова Лейсан Рашитовна","Муниципальное бюджетное общеобразовательное учреждение «Большекайбицкая средняя общеобразовательная школа - центр образования цифрового и гуманитарного профилей Кайбицкого муниципального района Республики Татарстан»"]
[18,"Лениногорский район","Муниципальное бюджетное общеобразовательное учреждение \"Средняя общеобразовательная школа №6 г.Лениногорска имени Героя России Исламова Дамира Назировича\" муниципального образования \"Лениногорский муниципальный район\" Республики Татарстан","Куручбаева","Рамина","Маратовна","Куручбаева Рамина Маратовна",5,5,46,73,null,"Михайлова Анастасия Николаевна","МБОУ \"СОШ №6 г.Лениногорска имени Героя России Д.Н. Исламова\""]
[19,"Мамадышский район","Муниципальное бюджетное общеобразовательное учреждение \"Зверосовхозская средняя общеобразовательная школа\" Мамадышского муниципального района Республики Татарстан","Шитов","Эмиль","Владимирович","Шитов Эмиль Владимирович",5,5,65,73,null,"Афанасьева Лариса Николаевна","Муниципальное бюджетное общеобразовательное учреждение \"Зверосовхозская средняя общеобразовательная школа\""]
[20,"Мензелинский район","МБОУ \"СОШ №3\"","Сысоев","Арсений","Денисович","Сысоев Арсений Денисович",5,5,52,73,null,"Гизатуллина Тамара Витальевна","МБОУ \"СОШ №3\""]
[21,"Московский район","МБОУ \"Средняя общеобразовательная татарско-русская школа №34\" Московского района г.Казани","Шакирова","Алина","Маратовна","Шакирова Алина Маратовна",5,5,54.5,73,null,"Закирова Ильмира Камилевна","МБОУ \"Школа №34\""]
[22,"Московский район","Муниципальное автономное общеобразовательное учреждение \"Лицей-интернат №2\" Московского района г.Казани","Насыбуллин","Карим","Рузэлевич","Насыбуллин Карим Рузэлевич",5,5,61,73,null,"Семенова Наталья Викторовная","МАОУ \"Лицей-интернат №2\""]
[23,"Московский район","Муниципальное автономное общеобразовательное учреждение \"Лицей-интернат №2\" Московского района г.Казани","Саубанов","Камиль","Ильдарович","Саубанов Камиль Ильдарович",5,5,58.5,73,null,"Семенова Наталья Викторовная","МАОУ \"Лицей-интернат №2\""]
[24,"Московский район","Муниципальное автономное общеобразовательное учреждение \"Лицей-интернат №2\" Московского района г.Казани","Миндубаев","Булат","Рифкатович","Миндубаев Булат Рифкатович",5,5,48,73,null,"Семенова Наталья Викторовная","МАОУ \"Лицей-интернат №2\""]
[25,"Московский район","Муниципальное бюджетное общеобразовательное учреждение \"Татарская гимназия №2 имени Шигабутдина Марджани при Казанском Федеральном Университете\" Московского района г.Казани","Галламова","Аделя","Алмазовна","Галламова Аделя Алмазовна",5,5,51,73,null,"Шарипова Зиля Нургалиевна","МБОУ \"Татарская гимназия №2 при КФУ\""]
[26,"Набережные Челны","МБОУ «Гимназия №26» города Набережные Челны","Мухаметзянов","Альберт","Ленарович","Мухаметзянов Альберт Ленарович",4,4,null,null,"победитель","Зотова Наталия Александровна","МБОУ «Гимназия №26» города Набережные Челны"]
[27,"Набережные Челны","МБОУ «Пушкинский пролицей №78» города Набережные Челны","Ахметшина","Мелита","Руслановна","Ахметшина Мелита Руслановна",4,4,null,null,"призёр","Забирова Альбина Ивановна","МБОУ «Пушкинский пролицей №78» города Набережные Челны"]
[28,"Набережные Челны","МБОУ «Средняя общеобразовательная школа №60» города Набережные Челны","Фролова","Анна","Михайловна","Фролова Анна Михайловна",4,4,null,null,"призёр","Байгулова Елена Геннадьевна","МБОУ «Средняя общеобразовательная школа №60» города Набережные Челны"]
[29,"Набережные Челны","МБОУ «Пушкинский пролицей №78» города Набережные Челны","Шарипова","Амина","Ильнуровна","Шарипова Амина Ильнуровна",4,4,null,null,"призёр","Аксёнова Дилбар Амирзяновна","МБОУ «Пушкинский пролицей №78» города Набережные Челны"]
[30,"Набережные Челны","МАОУ города Набережные Челны «Гимназия №76»","Кондылев","Богдан","Сергеевич","Кондылев Богдан Сергеевич",4,4,null,null,"призёр","Щетинина Людмила Валентиновна","МАОУ города Набережные Челны «Гимназия №76»"]
[31,"Набережные Челны","Муниципальное бюджетное общеобразовательное учреждение \"Гимназия №26\"","Баннов","Яков","Андреевич","Баннов Яков Андреевич",5,5,52,73,null,"Богданова Юлия Витальевна","Муниципальное бюджетное общеобразовательное учреждение \"Гимназия № 26\" г.Набережные Челны Республики Татарстан"]
[32,"Набережные Челны","Муниципальное автономное общеобразовательное учреждение города Набережные Челны «Лицей №78 им. А.С. Пушкина»","Воронова","Варвара","Евгеньевна","Воронова Варвара Евгеньевна",5,5,50,73,null,"Бахаева Елена Ильинична","Муниципальное автономное общеобразовательное учреждение \"Лицей №78 им. А.С. Пушкина\" г.Набережные Челны Республики Татарстан"]
[33,"Набережные Челны","муниципальное бюджетное общеобразовательное учреждение \"Средняя общеобразовательная школа № 41\"","Будилкина","Арина","Алексеевна","Будилкина Арина Алексеевна",5,5,46,73,null,"Корнилова Светлана Семеновна","Муниципальное бюджетное общеобразовательное учреждение \"Средняя общеобразовательная школа № 41\" г.Набережные Челны Республики Татарстан"]
[34,"Ново-Савиновский район","Муниципальное бюджетное общеобразовательное учреждение \"Многопрофильный лицей №170\" Ново-Савиновского района г.Казани.","Сибгатуллина","Алина","Альбертовна","Сибгатуллина Алина Альбертовна",5,5,46,73,null,"Давлиева Фарида Гаптелбаровна","МБОУ \"Лицей №170\""]
[35,"Пестречинский район","МБОУ «Многопрофильный лицей имени Героя Советского Союза Г.К. Камалеева» жилого комплекса «Усадьба Царево» с. Новое Шигалеево Пестречинского муниципального района Республики Татарстан","Сидорова","Софья","Николаевна","Сидорова Софья Николаевна",5,5,58,73,null,"Протасова Ирина Анатольевга","Муниципальное бюджетное образовательное учреждение «Многопрофильный лицей имени Героя Советского Союза Г.К. Камалеева» жилого комплекса «Усадьба Царево» с. Новое Шигалеево Пестречинского муниципального района Республики"]
[36,"Рыбно-Слободский район","Муниципальное бюджетное общеобразовательное учреждение «Рыбно-Слободская гимназия №1» Рыбно-Слободского муниципального района Республики Татарстан","Сафина","Эльвина","Ильнуровна","Сафина Эльвина Ильнуровна",5,5,51,73,null,"Крюкова Лариса Юрьевна","МБОУ \"Рыбно-Слободская гимназия №1\""]
[37,"Рыбно-Слободский район","Муниципальное бюджетное общеобразовательное учреждение «Рыбно-Слободская гимназия №1» Рыбно-Слободского муниципального района Республики Татарстан","Маслова","Надежда","Евгеньевна","Маслова Надежда Евгеньевна",5,5,46,73,null,"Крюкова Лариса Юрьевна","МБОУ \"Рыбно-Слободская гимназия №1\""]
[38,"Сабинский район","Муниципальное бюджетное общеобразовательное учреждение «Гимназия п.г.т. Богатые Сабы Сабинского муниципального района Республики Татарстан»","Шаймарданова","Айсылу","Айнуровна","Шаймарданова Айсылу Айнуровна",5,5,56,73,null,"Набиуллина Гульназ Наилевна","Муниципальное бюджетное общеобразовательное учреждение \"Гимназия п.г.т. Богатые Сабы Сабинского муниципального района Республики Татарстан\""]
[39,"Сабинский район","Муниципальное бюджетное общеобразовательное учреждение «Центр образования \"Оникс\" для одаренных детей»  Сабинского муниципального района Республики Татарстан","Гаттарова","Амина","Азатовна","Гаттарова Амина Азатовна",5,5,47,73,null,"Джуманова Алина Ильдаровна","Муниципальное бюджетное общеобразовательное учреждение «Центр образования \"Оникс\" для одаренных детей» Сабинского муниципального района Республики Татарстан"]
[40,"Советский район","Муниципальное бюджетное общеобразовательное учреждение \"Средняя общеобразовательная школа №84 с углубленным изучением иностранных языков\" Советского района г.Казани","Гиматова","Ясмина","Ильдаровна","Гиматова Ясмина Ильдаровна",5,5,63,73,null,"Файзеева Гузель Даниловна","МБОУ \"Школа №84\""]
[41,"Тукаевский район","Муниципальное бюджетное образовательное учреждение \"Комсомольская средняя общеобразовательная школа\" Тукаевского муниципального района Республики Татарстан","Петрова","Алёна","Алексеевна","Петрова Алёна Алексеевна",5,5,53.5,73,null,"Кузнецовафарида Фаритовна","МБОУ \"Комсомольская СОШ\" Тукаевского муниципального района РТ"]
[42,"Тукаевский район","МБОУ «Нижнесуыксинская СОШ»","Марданов","Булат","Маратович","Марданов Булат Маратович",5,5,57,73,null,"Анварова Ираида Анатольевна","МБОУ «Нижнесуыксинская СОШ»"]
[43,"Черемшанский район","Муниципальное бюджетное общеобразовательное учреждение \"Черемшанский лицей\" Черемшанского муниципального района Республики Татарстан","Кузнецов","Богдан","Николаевич","Кузнецов Богдан Николаевич",5,5,50,73,null,"Закирова Гулюся Кавсаровна","МБОУ\"Черемшанский лицей\""]
[44,"Чистопольский район","Муниципальное бюджетное общеобразовательное учреждение « Лицей № 1» Чистопольского муниципального района Республики Татарстан","Севрюгина","Виктория","Сергеевна","Севрюгина Виктория Сергеевна",5,5,46,73,null,"Абдуллина Дания Дамировна","МБОУ \"Лицей №1\" Чистопольского муниципального района РТ"]
[45,"Ютазинский район","МБОУ «Уруссинская гимназия» Ютазинского муниципального района Республики Татарстан","Закирова","Эсмина","Ильдусовна","Закирова Эсмина Ильдусовна",4,4,null,null,"призёр","Хикматуллина Фирдалия Кариповна","МБОУ «Уруссинская гимназия» Ютазинского муниципального района Республики Татарстан"]
[46,"Ютазинский район","МБОУ «Уруссинская начальная общеобразовательная школа №1» Ютазинского муниципального района Республики Татарстан","Камалтдинова","Рушания","Радиковна","Камалтдинова Рушания Радиковна",4,4,null,null,"призёр","Шакирова Гулия Варисовна","МБОУ «Уруссинская начальная общеобразовательная школа №1» Ютазинского муниципального района Республики Татарстан"]

{"sheet":"6 класс","index":2,"n_rows":48,"n_cols":14,"rows_kept":48,"merged":[[0,0,0,13]]}
["Список приглашённых на ЗЭ РОШ по русскому языку  6 класс. 2024-2025 уч.год "]
[]
["№","Муниципалитет","Полное наименование ОУ по уставу","Фамилия","Имя","Отчество","Фамилия Имя Отчество ","Класс обучения","Класс участия","Итоговый балл","Максимальный балл","Победитель/призёр заключительного этапа 2023-2024 уч. г.","Фамилия, имя, отчество педагога, подготовившего участника олимпиады","Полное наименование образовательного учреждения (по уставу)"]
[1,"Агрызский район","Муниципальное общеобразовательное учреждение общеобразовательная организация №2 города Агрыз Агрызского муниципального района Республики Татарстан","Сычугова","Виктория","Евгеньевна","Сычугова Виктория Евгеньевна",6,6,67,73,null,"Костенкова Ольга Васильевна","Муниципальное бюджетное общеобразовательное учреждение \"Средняя общеобразовательная школа № 2 города Агрыз Республики Татарстан\""]
[2,"Азнакаевский район","МБОУ «Средняя общеобразовательная школа № 1 города Азнакаево» Азнакаевского муниципального района Республики Татарстан","Вальмиев","Амир","Ильдарович","Вальмиев Амир Ильдарович",6,6,null,null,"призёр","Хабипова Зульфия Закариевна","МБОУ «Средняя общеобразовательная школа № 1 города Азнакаево» Азнакаевского муниципального района Республики Татарстан"]
[3,"Азнакаевский район","МБОУ «Средняя общеобразовательная школа №7 города Азнакаево» Азнакаевского муниципального района Республики Татарстан","Хабипова","Саида","Ильдаровна","Хабипова Саида Ильдаровна",6,6,null,null,"призёр","Нургалиева Ирина Ильдусовна","МБОУ «Средняя общеобразовательная школа №7 города Азнакаево» Азнакаевского муниципального района Республики Татарстан"]
[4,"Азнакаевский район","МБОУ «Средняя общеобразовательная школа №5 с углубленным изучением английского языка города Азнакаево» Азнакаевского муниципального района Республики Татарстан ","Татышева","Азалия","Алексеевна","Татышева Азалия Алексеевна",6,6,null,null,"призёр","Султанова Люция Миннияровна","МБОУ «Средняя общеобразовательная школа №5 с углубленным изучением английского языка города Азнакаево» Азнакаевского муниципального района Республики Татарстан "]
[5,"Азнакаевский район","«Муниципальное бюджетное общеобразовательное учреждение \"Средняя общеобразовательная школа №7 города Азнакаево\"   Азнакаево» Азнакаевского муниципального района Республики Татарстан","Абдуллина","Камиля","Азатовна","Абдуллина Камиля Азатовна",6,6,57,73,"призер","Нургалиева Ирина Ильдусовна"]
[6,"Актанышский район","Муниципальное бюджетное общеобразовательное учреждение \"Актанышская средняя общеобразовательная школа №2 с углубленным изучением отдельных предметов\" Актанышского муниципального района Республики Татарстан","Сапаева","Шахризода","Азаматовна","Сапаева Шахризода Азаматовна",6,6,58,73,null,"Белоусова Мавлида Идрисовна","МБОУ \"Актанышская СОШ №2 с углубленным изучением отдельных предметов\""]
[7,"Бугульминский район","МБОУ средняя общеобразовательная школа №9 Бугульминского муниципального района Республики Татарстан имени Капитолины Андреевны Сидоркиной","Андреев","Иван","Дмитриевич","Андреев Иван Дмитриевич",6,6,null,null,"победитель","Филиппова Светлана Анатольевна","МБОУ средняя общеобразовательная школа №9 Бугульминского муниципального района Республики Татарстан имени Капитолины Андреевны Сидоркиной"]
[8,"Бугульминский район","МБОУ средняя общеобразовательная школа №6 с углубленным изучением отдельных предметов Бугульминского муниципального района Республики Татарстан","Князькина","Полина","Павловна","Князькина Полина Павловна",6,6,null,null,"призёр","Носачева Светлана Викторовна","МБОУ средняя общеобразовательная школа №6 с углубленным изучением отдельных предметов Бугульминского муниципального района Республики Татарстан"]
[9,"Бугульминский район","МБОУ лицей №2 Бугульминского муниципального района Республики Татарстан","Муравьева","Кира","Алексеевна","Муравьева Кира Алексеевна",6,6,null,null,"призёр","Казакова Светлана Михайловна","МБОУ лицей №2 Бугульминского муниципального района Республики Татарстан"]
[10,"Вахитовский район","Муниципальное автономное общеобразовательное учреждение для детей, проявивших выдающиеся способности \"Средняя общеобразовательная школа-интернат \"Специализированный олимпиадно-научный центр \"СОлНЦе\" Вахитовского района г.Казани","Мусиенко","Семён","Сергеевич","Мусиенко Семён Сергеевич",6,6,62,73,null,"Аюпова Елена Ильдаровна","МАОУ СОШИ \"СОлНЦе\""]
[11,"Вахитовский район","Специализированная общеобразовательная школа-интернат \"Лицей имени Н.И. Лобачевского\" федерального государственного автономного образовательного учреждения высшего образования \"Казанский (Приволжский) федеральный университет\"","Асылгараева","Сафия","Радиковна","Асылгараева Сафия Радиковна",6,6,58,73,null,"Первеева Екатерина Валерьевна","СОШИ \"Лицей имени Н.И.Лобачевского\" КФУ"]
[12,"Верхнеуслонский район","Государственное Автономное Общеобразовательное Учреждение \"Школа Иннополис\"","Усова","Ева","Артемовна","Усова Ева Артемовна",6,6,61.5,73,null,"Кабанова Дарья Аркадьевна","ГАОУ \"Школа Иннополис\""]
[13,"Елабужский район","Муниципальное бюджетное общеобразовательное учреждение \"Гимназия №4\" Елабужского муниципального района Республики Татарстан","Мусаев","Тимур","Маратович","Мусаев Тимур Маратович",6,6,59,73,null,"Шевелева Анна Олеговна","МБОУ \"Гимназия №4\""]
[14,"Заинский район","Муниципальное бюджетное общеобразовательное учреждение \"Заинская средняя общеобразовательная школа №2\" Заинского муниципального района Республики Татарстан","Шарапова","Ралина","Маратовна","Шарапова Ралина Маратовна",6,6,56,73,"призер","Кузнецова Валентина Александровна"]
[15,"Заинский район","Муниципальное бюджетное общеобразовательное учреждение  \"Заинская средняя общеобразовательная школа №6\" Заинского муниципального района Республики Татарстан","Ксенофонтова","Аэлита","Эдуардовна","Ксенофонтова Аэлита Эдуардовна",6,6,57,73,"победитель","Садыйкова Глюза Шагиахметовна"]
[16,"Казань, Вахитовский район","МАОУ для детей, проявивших выдающиеся способности «Средняя общеобразовательная школа-интернат «Специализированный олимпиадно-научный центр «СОлНЦе» Вахитовского района г. Казани","Вильданов","Эмиль","Динарович","Вильданов Эмиль Динарович",6,6,null,null,"призёр","Аглуллина Аида Ринатовна","МАОУ для детей, проявивших выдающиеся способности «Средняя общеобразовательная школа-интернат «Специализированный олимпиадно-научный центр «СОлНЦе» Вахитовского района г. Казани"]
[17,"Казань, Ново-Савиновский район","МБОУ «Гимназия №107 «Открытие» Ново-Савиновского района г.Казани","Саубанов","Саит","Рамилевич","Саубанов Саит Рамилевич",6,6,null,null,"призёр","Валиахметова Сагдиана Рустемова","МБОУ «Гимназия №107 «Открытие» Ново-Савиновского района г.Казани"]
[18,"Казань, Советский район","МБОУ «Средняя общеобразовательная школа №84 с углубленным изучением иностранных языков» Советского района г.Казани","Мингатина","Рамиля","Альбертовна","Мингатина Рамиля Альбертовна",6,6,null,null,"призёр","Сафиуллина Миляуша Ринатовна","МБОУ «Средняя общеобразовательная школа №84 с углубленным изучением иностранных языков» Советского района г.Казани"]
[19,"Кайбицкий район","Муниципальное бюджетное общеобразовательное учреждение «Большекайбицкая средняя общеобразовательная школа - центр образования цифрового и гуманитарного профилей Кайбицкого муниципального района Республики Татарстан»","Бейжанова","Рания","Ойбековна","Бейжанова Рания Ойбековна",6,6,59,73,null,"Миннуллина Нафиса Имамутдиновна","Муниципальное бюджетное общеобразовательное учреждение «Большекайбицкая средняя общеобразовательная школа - центр образования цифрового и гуманитарного профилей Кайбицкого муниципального района Республики Татарстан»"]
[20,"Кукморский район","МБОУ «Ошторма-Юмьинская средняя школа» Кукморского муниципального района Республики Татарстан","Степанова","Алеся","Валерьевна","Степанова Алеся Валерьевна",6,6,null,null,"призёр","Степанова Вероника Валерьевна","МБОУ «Ошторма-Юмьинская средняя школа» Кукморского муниципального района Республики Татарстан"]
[21,"Мензелинский район","МБОУ «Средняя общеобразовательная школа №1» г.Мензелинска  Республики Татарстан","Набиева","Радмила","Радиковна","Набиева Радмила Радиковна",6,6,null,null,"призёр","Гарипова Резеда Габделфатовна","МБОУ «Средняя общеобразовательная школа №1» г.Мензелинска  Республики Татарстан"]
[22,"Мензелинский район","МБОУ \"СОШ №1\"","Скороход","Михаил","Олегович","Скороход Михаил Олегович",6,6,60,73,null,"Гарипова Резеда Габделфатовна","МБОУ \"СОШ №1\""]
[23,"Московский район","Муниципальное автономное общеобразовательное учреждение \"Лицей-интернат №2\" Московского района г.Казани","Елисеев","Даниил","Дмитриевич","Елисеев Даниил Дмитриевич",6,6,58,73,null,"Шарипова Диляра Мидхатовна","МАОУ \"Лицей-интернат №2\""]
[24,"Набережные Челны","МБОУ «Гимназия №26» города Набережные Челны","Бикмухаметова","Амина","Ильшатовна","Бикмухаметова Амина Ильшатовна",6,6,null,null,"призёр","Макария Ксения Николаевна","МБОУ «Гимназия №26» города Набережные Челны"]
[25,"Набережные Челны","МАОУ города Набережные Челны «Гимназия №76»","Миндубаева","Зарина","Равилевна","Миндубаева Зарина Равилевна",6,6,null,null,"призёр","Фазлыева Светлана Владимировна","МАОУ города Набережные Челны «Гимназия №76»"]
[26,"Набережные Челны","МБОУ «Гимназия №26» города Набережные Челны","Кожуховский","Григорий","Глебович","Кожуховский Григорий Глебович",6,6,null,null,"призёр","Макария Ксения Николаевна","МБОУ «Гимназия №26» города Набережные Челны"]
[27,"Набережные Челны","МАОУ города Набережные Челны «Гимназия №77»","Гаттаров","Эмиль","Ильмирович","Гаттаров Эмиль Ильмирович",6,6,null,null,"призёр","Владыко Светлана Андреевна","МАОУ города Набережные Челны «Гимназия №77»"]
[28,"Набережные Челны","Муниципальное бюджетное общеобразовательное учреждение \"Гимназия №26\"","Ступник","Савва","Андреевич","Ступник Савва Андреевич",6,6,58.5,73,null,"Фельк Татьяна Александровна","Муниципальное бюджетное общеобразовательное учреждение \"Гимназия №26\" города Набережные Челны Республики Татарстан"]
[29,"Набережные Челны","Муниципальное автономное\nобщеобразовательное учреждение города Набережные Челны «Гимназия №76»","Кочурова","Диана","Максимовна","Кочурова Диана Максимовна",6,6,61,73,null,"Фазлыева Светлана Владимировна","Муниципальное автономное общеобразовательное учреждение города Набережные Челны \"Гимназия №76\" Республики Татарстан"]
[30,"Набережные Челны","Муниципальное автономное\nобщеобразовательное учреждение города Набережные Челны «Гимназия №76»","Латыпова","Карина","Ренатовна","Латыпова Карина Ренатовна",6,6,59,73,null,"Фазлыева Светлана Владимировна","Муниципальное автономное общеобразовательное учреждение города Набережные Челны \"Гимназия №76\" Республики Татарстан"]
[31,"Набережные Челны","Муниципальное автономное общеобразовательное учреждение города Набережные Челны «Лицей №78 им. А.С. Пушкина»","Назмеева","Нелли","Айдаровна","Назмеева Нелли Айдаровна",6,6,58,73,null,"Самсонова Елена Борисовна","Муниципальное автономное общеобразовательное учреждение \"Лицей №78 им. А.С. Пушкина\" города Набережные Челны Республики Татарстан"]
[32,"Нижнекамский район","МБОУ «Средняя общеобразовательная школа №29» Нижнекамского муниципального района Республики Татарстан","Сафин","Карим","Ренатович","Сафин Карим Ренатович",6,6,null,null,"призёр","Зиганшина Альфия Адиятулловна","МБОУ «Средняя общеобразовательная школа №29» Нижнекамского муниципального района Республики Татарстан"]
[33,"Пестречинский район","МБОУ \"Пестречинская СОШ №1 с углубленным изучением отдельных предметов имени Героя России Ивана Алексеевича Додосова\"","Цуров","Муслим","Хамзатович","Цуров Муслим Хамзатович",6,6,62,73,null,"Фурсова Татьяна Николаевна","Муниципальное бюджетное образовательное учреждение \"Пестречинская средняя общеобразовательная школа №1 с углубленным изучением отдельных предметов имени Героя России И.А.Додосова\" с. Пестрецы Пестречинского муниципального района"]
[34,"Пестречинский район","МБОУ \"Пестречинская СОШ №1 с углубленным изучением отдельных предметов имени Героя России Ивана Алексеевича Додосова\"","Закиров","Артур","Русланович","Закиров Артур Русланович",6,6,61,73,null,"Любова Арина Александровна","Муниципальное бюджетное образовательное учреждение \"Пестречинская средняя общеобразовательная школа №1 с углубленным изучением отдельных предметов имени Героя России И.А.Додосова\" с. Пестрецы Пестречинского муниципального района"]
[35,"Пестречинский район","МБОУ «Многопрофильный лицей имени Героя Советского Союза Г.К. Камалеева» жилого комплекса «Усадьба Царево» с. Новое Шигалеево Пестречинского муниципального района Республики Татарстан","Шарафутдинова","Самина","Ильнуровна","Шарафутдинова Самина Ильнуровна",6,6,58,73,null,"Макарова Марина Ивановна","Муниципальное бюджетное образовательное учреждение «Многопрофильный лицей имени Героя Советского Союза Г.К. Камалеева» жилого комплекса «Усадьба Царево» с. Новое Шигалеево Пестречинского муниципального района Республики"]
[36,"Пестречинский район","МБОУ Технологический Лицей \"Алгоритм\"","Золина","Екатерина","Денисовна","Золина Екатерина Денисовна",6,6,59,73,null,"Кудрявцева Крестина Петровна","Муниципальное бюджетное общеобразовательное учреждение \"Технологический лицей \"Алгоритм\" д.Куюки Пестречинского муниципального района"]
[37,"Приволжский район","Автономная некоммерческая образовательная организация \"Международная школа Казани\"","Сафина","Мадина","Айдаровна","Сафина Мадина Айдаровна",6,6,58,73,null,"Валиуллова Ильвира Ильязовна","АНОО \"Международная школа УНИСКУЛ\""]
[38,"Приволжский район","Муниципальное бюджетное общеобразовательное учреждение \"Многопрофильный лицей №186 - \"Перспектива\" Приволжского района г.Казани","Мазитова","Риана","Рашитовна","Мазитова Риана Рашитовна",6,6,57,73,"призер","Кузнецова Екатерина Алексеевна"]
[39,"Приволжский район","Муниципальное бюджетное общеобразовательное учреждение \"Многопрофильный лицей №186 - \"Перспектива\" Приволжского района г.Казани","Яманова","Элина","Дмитриевна","Яманова Элина Дмитриевна",6,6,57,73,"призер","Свиридова Лейсан Мансуровна"]
[40,"Рыбно-Слободский район","Муниципальное бюджетное общеобразовательное учреждение «Рыбно-Слободская гимназия №1» Рыбно-Слободского муниципального района Республики Татарстан","Галеева","Айгуль","Альбертовна","Галеева Айгуль Альбертовна",6,6,56,73,"победитель","Горшкова Роза Аркадьевна"]
[41,"Рыбно-Слободский район","Муниципальное бюджетное общеобразовательное учреждение «Рыбно-Слободская средняя общеобразовательная школа №2» Рыбно-Слободского муниципального района Республики Татарстан","Гордеева","Олеся","Викторовна","Гордеева Олеся Викторовна",6,6,56,73,"победитель","Власова Татьяна Александровна"]
[42,"Советский район","Муниципальное бюджетное общеобразовательное учреждение \"Гимназия №175\" Советского района г.Казани","Бадыгин","Азамат","Рафаэлевич","Бадыгин Азамат Рафаэлевич",6,6,58,73,null,"Саламатова Анастасия Павловна","МБОУ \"Гимназия №175\""]
[43,"Тетюшский район","Муниципальное бюджетное общеобразовательное учреждение «Тетюшская средняя общеобразовательная школа №2 имени Героя Российской Федерации Андрея Андреевича Соколовского» Тетюшского муниципального района Республики Татарстан","Авдеева","Дарина","Алексеевна","Авдеева Дарина Алексеевна",6,6,56,73,"победитель","Кондакова Галина Викентьевна"]
[44,"Тукаевский район","МБОУ «Нижнесуыксинская СОШ»","Гильманова","Милана","Шамилевна","Гильманова Милана Шамилевна",6,6,58,73,null,"Анварова Ираида Анатольевна","МБОУ «Нижнесуыксинская СОШ»"]
[45,"Ютазинский район","МБОУ \"Уруссинская СОШ № 3\"","Горшенина","Полина","Александровна","Горшенина Полина Александровна",6,6,58,73,null,"Низамеева Оксана Александровна","МБОУ \"Уруссинская СОШ №3\"Ютазинского муниципального района РТ"]

{"sheet":"7 класс","index":3,"n_rows":53,"n_cols":14,"rows_kept":53,"merged":[[0,0,0,13]]}
["Список приглашённых на ЗЭ РОШ по русскому языку  7 класс. 2024-2025 уч.год "]
[]
["№","Муниципалитет","Полное наименование ОУ по уставу","Фамилия","Имя","Отчество","Фамилия Имя Отчество","Класс обучения","Класс участия","Итоговый балл","Максимальный балл","Победитель/призёр заключительного этапа 2023-2024 уч. г.","Фамилия, имя, отчество педагога, подготовившего участника олимпиады","Полное наименование образовательного учреждения (по уставу)"]
[1,"Азнакаевский район","Муниципальное бюджетное общеобразовательное учреждение «Лицей №4 города Азнакаево» Азнакаевского муниципального района Республики Татарстан«Лицей № 4 г.Азнакаево»","Марданова","Амина","Наилевна","Марданова Амина Наилевна",7,7,57,75,null,"Ибатуллина Айгуль Рафисовна","МБОУ \"Лицей №4 г. Азнакаево\" АМР РТ"]
[2,"Азнакаевский район","Муниципальное бюджетное общеобразовательное учреждение «Средняя общеобразовательная школа №5 с углубленным изучением английского языка» города Азнакаево Азнакаевского муниципального района Республики Татарстан","Глотова","Алиса","Артуровна","Глотова Алиса Артуровна",7,7,59,75,null,"Галиева Гульназ Мунавировна","МБОУ \"СОШ №5 г. Азнакаево\" РТ"]
[3,"Актанышский район","Муниципальное бюджетное общеобразовательное учреждение \"Актанышская средняя общеобразовательная школа №2 с углубленным изучением отдельных предметов\" Актанышского муниципального района Республики Татарстан","Нурлыева","Анжелика","Алмазовна","Нурлыева Анжелика Алмазовна",7,7,59,75,null,"Исхакова Ландыш Илисовна","МБОУ \"Актанышская СОШ №2 с углубленным изучением отдельных предметов\""]
[4,"Актанышский район","Муниципальное  бюджетное общеобразовательное учреждение \"Чуракаевская основная общеобразовательная школа\" Актанышского муниципального района Республики Татарстан","Мингазова","Ралия","Салаватовна","Мингазова Ралия Салаватовна",7,7,58,75,null,"Гареева Залифа Зульфаровна","МБОУ \"Чуракаевская ООШ\""]
[5,"Актанышский район","Государственное автономное общеобразовательное учреждение  \"Гуманитарная гимназия-интернат для одаренных детей\"","Гильметдинова","Тансылу","Маратовна","Гильметдинова Тансылу Маратовна",7,7,56,75,null,"Шагзамова Энже Фирдависовна"]
[6,"Актанышский район","Государственное автономное общеобразовательное учреждение  \"Гуманитарная гимназия-интернат для одаренных детей\"","Шакурова","Диляра","Фаварисовна","Шакурова Диляра Фаварисовна",7,7,56,75,null,"Шагзамова Энже Фирдависовна"]
[7,"Актанышский район","Государственное автономное общеобразовательное учреждение  \"Гуманитарная гимназия-интернат для одаренных детей\"","Шайхуллина","Зиля","Расиховна","Шайхуллина Зиля Расиховна",7,7,56,75,null,"Рафикова Резеда Шамилевна"]
[8,"Бугульминский район","МБОУ средняя общеобразовательная школа №6 с углубленным изучением отдельных предметов Бугульминского муниципального района  Республики Татарстан","Набережнова","Александра","Максимовна","Набережнова Александра Максимовна",7,7,null,null,"призёр","Гришанина Елена Сергеевна","МБОУ средняя общеобразовательная школа №6 с углубленным изучением отдельных предметов Бугульминского муниципального района  Республики Татарстан"]
[9,"Вахитовский район","Муниципальное автономное общеобразовательное учреждение \"Средняя общеобразовательная школа №18 с углубленным изучением английского языка\" Вахитовского района города Казани","Куковицкая","Елизавета","Романовна","Куковицкая Елизавета Романовна",7,7,57,75,null,"Макарова Эльза Фаритовна","МАОУ \"Школа №18\""]
[10,"Верхнеуслонский район","Государственное Автономное Общеобразовательное Учреждение \"Школа Иннополис\"","Исмаилова","Сербина","Рустемовна","Исмаилова Сербина Рустемовна",7,7,64,75,null,"Кокутина Наталья Юрьевна","ГАОУ \"Школа Иннополис\""]
[11,"Верхнеуслонский район","Государственное Автономное Общеобразовательное Учреждение \"Школа Иннополис\"","Хабибуллина","Алсу","Ильшатовна","Хабибуллина Алсу Ильшатовна",7,7,65,75,null,"Кокутина Наталья Юрьевна","ГАОУ \"Школа Иннополис\""]
[12,"Дрожжановский район","МБОУ «Алешкин-Саплыкская средняя общеобразовательная школа имени Дементьева Василия Степановича» Дрожжановского муниципального района  Республики Татарстан","Филиппов","Матвей","Алексеевич","Филиппов Матвей Алексеевич",7,7,null,null,"призёр","Айзатуллина Зинфиря Набиулловна","МБОУ «Алешкин-Саплыкская средняя общеобразовательная школа имени Дементьева Василия Степановича» Дрожжановского муниципального района  Республики Татарстан"]
[13,"Елабужский район","Муниципальное бюджетное общеобразовательное учреждение \"Гимназия №4\" Елабужского муниципального района Республики Татарстан","Новикова","Элина","Сергеевна","Новикова Элина Сергеевна",7,7,60,75,null,"Потапова Ольга Юрьевна","МБОУ \"Гимназия №4\""]
[14,"Елабужский район","Муниципальное автономное общеобразовательное учреждение \"Полилингвальный образовательный комплекс \"Адымнар-Алабуга\" Елабужского муниципального района Республики Татарстан","Зотова","Анастасия","Витальевна","Зотова Анастасия Витальевна",7,7,56,75,null,"Ахметзянова Эльвина Илнаровна"]
[15,"Зеленодольский район","МБОУ «Гимназия №10 Зеленодольского муниципального района Республики Татарстан»","Горелкина","Майя","Вячеславовна","Горелкина Майя Вячеславовна",7,7,null,null,"призёр","Акимова Светлана Юрьевна","МБОУ «Гимназия №10 Зеленодольского муниципального района Республики Татарстан»"]
[16,"Казань, Вахитовский район","МАОУ для детей, проявивших выдающиеся способности «Средняя общеобразовательная школа-интернат «Специализированный олимпиадно-научный центр «СОлНЦе» Вахитовского района г. Казани","Асадулина","София","Владиславовна","Асадулина София Владиславовна",7,7,null,null,"призёр","Нугманова Гузель Шамилевна","МАОУ для детей, проявивших выдающиеся способности «Средняя общеобразовательная школа-интернат «Специализированный олимпиадно-научный центр «СОлНЦе» Вахитовского района г. Казани"]
[17,"Казань, Вахитовский район","ОШИ «Лицей имени Н.И. Лобачевского» федерального государственного автономного образовательного учреждения высшего образования «Казанский (Приволжский) федеральный университет»","Александрова","Милана","Александровна","Александрова Милана Александровна",7,7,null,null,"призёр","Агапова Екатерина Сергеевна","МАОУ для детей, проявивших выдающиеся способности «Средняя общеобразовательная школа-интернат «Специализированный олимпиадно-научный центр «СОлНЦе» Вахитовского района г.Казани"]
[18,"Казань, Вахитовский район","МАОУ для детей, проявивших выдающиеся способности «Средняя общеобразовательная школа-интернат «Специализированный олимпиадно-научный центр «СОлНЦе» Вахитовского района г. Казани","Кадырметова ","Карина","Вильевна","Кадырметова Карина Вильевна",7,7,null,null,"призёр","Нугманова Гузель Шамилевна","МАОУ для детей, проявивших выдающиеся способности «Средняя общеобразовательная школа-интернат «Специализированный олимпиадно-научный центр «СОлНЦе» Вахитовского района г. Казани"]
[19,"Казань, Вахитовский район","МАОУ для детей, проявивших выдающиеся способности «Средняя общеобразовательная школа-интернат «Специализированный олимпиадно-научный центр «СОлНЦе» Вахитовского района г. Казани","Девлетукаева","Асиль","Рашидовна","Девлетукаева Асиль Рашидовна",7,7,null,null,"призёр","Нугманова Гузель Шамилевна","МАОУ для детей, проявивших выдающиеся способности «Средняя общеобразовательная школа-интернат «Специализированный олимпиадно-научный центр «СОлНЦе» Вахитовского района г. Казани"]
[20,"Казань, Московский район","МБОУ «Татарская гимназия №2 имени Шигабутдина Марджани при Казанском Федеральном Университете» Московского района г.Казани","Гарипова","Ханифа","Джаудатовна","Гарипова Ханифа Джаудатовна",7,7,null,null,"призёр","Насыров Ильдар Асхатович","МБОУ «Татарская гимназия №2 имени Шигабутдина Марджани при Казанском Федеральном Университете» Московского района г.Казани"]
[21,"Казань, Приволжский район","МБОУ «Гимназия №6» Приволжского района г.Казани","Лучкина","Алиса","Руслановна","Лучкина Алиса Руслановна",7,7,null,null,"призёр","Безрукова Ольга Борисовна","МБОУ «Гимназия №6» Приволжского района г.Казани"]
[22,"Казань, Приволжский район","МБОУ «Гимназия №52» Приволжского района г.Казани","Сметанин","Андрей","Максимович","Сметанин Андрей Максимович",7,7,null,null,"призёр","Гайнуллина Ильсия Рафкатовна","МБОУ «Гимназия №52» Приволжского района г.Казани"]
[23,"Казань, Советский район","МБОУ «Средняя общеобразовательная школа №84 с углубленным изучением иностранных языков« Советского района г.Казани","Буравлева","Полина","Ивановна","Буравлева Полина Ивановна",7,7,null,null,"призёр","Григорьева Ирина Викторовна","МБОУ «Средняя общеобразовательная школа №84 с углубленным изучением иностранных языков« Советского района г.Казани"]
[24,"Мензелинский район","МБОУ \"СОШ №1\"","Вячкилева","Марина","Артемовна","Вячкилева Марина Артемовна",7,7,58,75,null,"Ильина Ольга Владимировна","МБОУ \"СОШ №1\""]
[25,"Московский район","Муниципальное бюджетное общеобразовательное учреждение «Гимназия №20 \"Гармония\"» Московского района г. Казани","Ихсанов","Альберт","Айратович","Ихсанов Альберт Айратович",7,7,66,75,null,"Макарова Эльвира Ильдаровна","МБОУ \"Гимназия №20 \"Гармония\""]
[26,"Московский район","Частное общеобразовательное учреждение средняя общеобразовательная школа \"Елена-Сервис\"","Десяткова","Ульяна","Денисовна","Десяткова Ульяна Денисовна",7,7,56,75,null,"Зарипова"]
[27,"Набережные Челны","МБОУ «Гимназия №26» города Набережные Челны","Мязин","Игорь","Андреевич","Мязин Игорь Андреевич",7,7,null,null,"победитель","Тихомирова Гульсира Бегжановна","МБОУ «Гимназия №26» города Набережные Челны"]
[28,"Набережные Челны","МБОУ «Гимназия №26» города Набережные Челны","Бариева","Камиля","Дамировна","Бариева Камиля Дамировна",7,7,null,null,"призёр","Богданова Юлия Витальевна","МБОУ «Гимназия №26» города Набережные Челны"]
[29,"Набережные Челны","МБОУ «Гимназия №26» города Набережные Челны","Рашитов","Илья","Николаевич","Рашитов Илья Николаевич",7,7,null,null,"призёр","Богданова Юлия Витальевна","МБОУ «Гимназия №26» города Набережные Челны"]
[30,"Набережные Челны","МБОУ «Гимназия №26» города Набережные Челны","Салихов","Амир","Айратович","Салихов Амир Айратович",7,7,null,null,"призёр","Богданова Юлия Витальевна","МБОУ «Гимназия №26» города Набережные Челны"]
[31,"Набережные Челны","МБОУ «Гимназия №26» города Набережные Челны","Попов","Артём","Станиславович","Попов Артём Станиславович",7,7,null,null,"призёр","Богданова Юлия Витальевна","МБОУ «Гимназия №26» города Набережные Челны"]
[32,"Набережные Челны","МБОУ «Гимназия №26» города Набережные Челны","Чех","Дмитрий","Александрович","Чех Дмитрий Александрович",7,7,null,null,"призёр","Богданова Юлия Витальевна","МБОУ «Гимназия №26» города Набережные Челны"]
[33,"Набережные Челны","МБОУ «Гимназия №26» города Набережные Челны","Саетов","Самат","Раилевич","Саетов Самат Раилевич",7,7,null,null,"призёр","Богданова Юлия Витальевна","МБОУ «Гимназия №26» города Набережные Челны"]
[34,"Набережные Челны","МБОУ «Гимназия №26» города Набережные Челны","Фаизов","Ризван","Искандерович","Фаизов Ризван Искандерович",7,7,null,null,"призёр","Тихомирова Гульсира Бегжановна","МБОУ «Гимназия №26» города Набережные Челны"]
[35,"Набережные Челны","МАОУ города Набережные Челны «Гимназия №76»","Латыйпова","Амина","Руслановна","Латыйпова Амина Руслановна",7,7,null,null,"призёр","Ермаков Антон Олегович","МАОУ города Набережные Челны «Гимназия №76»"]
[36,"Набережные Челны","МБОУ «Гимназия №26» города Набережные Челны","Шайдуллина","Регина","Вазифовна","Шайдуллина Регина Вазифовна",7,7,null,null,"призёр","Тихомирова Гульсира Бегжановна","МБОУ «Гимназия №26» города Набережные Челны"]
[37,"Набережные Челны","МАОУ города Набережные Челны «Средняя общеобразовательная школа №40 с углубленным изучением отдельных предметов»","Фролов","Иван","Дмитриевич","Фролов Иван Дмитриевич",7,7,null,null,"призёр","Гилязетдинова Ильмира Махияновна","МАОУ города Набережные Челны «Средняя общеобразовательная школа №40 с углубленным изучением отдельных предметов»"]
[38,"Набережные Челны","МБОУ «Гимназия №26» города Набережные Челны","Кабальнов","Даниил","Фёдорович","Кабальнов Даниил Фёдорович",7,7,null,null,"призёр","Богданова Юлия Витальевна","МБОУ «Гимназия №26» города Набережные Челны"]
[39,"Набережные Челны","МБОУ «Гимназия №26» города Набережные Челны","Каткова","Анастасия","Андреевна","Каткова Анастасия Андреевна",7,7,null,null,"призёр","Богданова Юлия Витальевна","МБОУ «Гимназия №26» города Набережные Челны"]
[40,"Набережные Челны","Муниципальное бюджетное общеобразовательное учреждение \"Гимназия №26\"","Макария","Валерия","Евгеньевна","Макария Валерия Евгеньевна",7,7,66,75,null,"Тихомирова Гульсира Бегжановна","Муниципальное бюджетное общеобразовательное учреждение \"Гимназия №26\" города Набережные Челны Республики Татарстан"]
[41,"Нижнекамский район","МБОУ «Лицей №35» Нижнекамского муниципального района Республики Татарстан","Федин","Даниил","Олегович","Федин Даниил Олегович",7,7,null,null,"призёр","Садыкова Гульнар Шарифзяновна","МБОУ «Лицей №35» Нижнекамского муниципального района Республики Татарстан"]
[42,"Нурлатский район","МАОУ \"СОШ № 9\" г.Нурлат","Бильданова","Риана","Ришатовна","Бильданова Риана Ришатовна",7,7,65,75,null,"Макеева Марина Петровна","МАОУ \"СОШ № 9\" г. Нурлат РТ"]
[43,"Пестречинский район","МБОУ \"Пестречинская СОШ №1 с углубленным изучением отдельных предметов имени Героя России Ивана Алексеевича Додосова\"","Гилазова","Динара","Рустамовна","Гилазова Динара Рустамовна",7,7,63,75,null,"Фурсова Татьяна Николаевна","Муниципальное бюджетное образовательное учреждение \"Пестречинская средняя общеобразовательная школа №1 с углубленным изучением отдельных предметов имени Героя России И.А.Додосова\" с. Пестрецы Пестречинского муниципального района"]
[44,"Пестречинский район","МБОУ «Многопрофильный лицей имени Героя Советского Союза Г.К. Камалеева» жилого комплекса «Усадьба Царево» с. Новое Шигалеево Пестречинского муниципального района Республики Татарстан","Закиева","Милана","Ильгизовна","Закиева Милана Ильгизовна",7,7,61,75,null,"Валиахметова Эльвира Раиловна","Муниципальное бюджетное образовательное учреждение «Многопрофильный лицей имени Героя Советского Союза Г.К. Камалеева» жилого комплекса «Усадьба Царево» с. Новое Шигалеево Пестречинского муниципального района Республики"]
[45,"Приволжский район","Специализированный учебный научный центр – общеобразовательная школа-интернат «IT-лицей» федерального государственного автономного образовательного учреждения высшего образования «Казанский (Приволжский) федеральный университет»","Асадулина","София","Вячеславовна","Асадулина София Вячеславовна",7,7,62,75,null,"Аюпова Елена Ильдаровна","МАОУ СОШИ \"СОлНЦе\""]
[46,"Рыбно-Слободский район","Муниципальное бюджетное общеобразовательное учреждение «Рыбно-Слободская гимназия №1» Рыбно-Слободского муниципального района Республики Татарстан","Мухамедзянова","Ильзида","Ильнаровна","Мухамедзянова Ильзида Ильнаровна",7,7,56.5,75,null,"Кабирова Рима Адиповна"]
[47,"Сабинский район","Муниципальное бюджетное общеобразовательное учреждение «Центр образования \"Оникс\" для одаренных детей»  Сабинского муниципального района Республики Татарстан","Сайфутдинова","Марьям","Искандеровна","Сайфутдинова Марьям Искандеровна",7,7,67,75,null,"Джуманова Алина Ильдаровна","Муниципальное бюджетное общеобразовательное учреждение «Центр образования \"Оникс\" для одаренных детей» Сабинского муниципального района Республики Татарстан"]
[48,"Тукаевский район","МУниципальное бюджетное общеобразовательное учреждение «Малошильнинская средняя общеобразовательная школа» Тукаевского муниципального района Республики Татарстан","Кургускина","Вера","Александровна","Кургускина Вера Александровна",7,7,57.5,75,null,"Габитова Саима Сулеймановна","МБОУ «Малошильнинская СОШ» Тукаевского муниципального района РТ"]
[49,"Тукаевский район","МУниципальное бюджетное общеобразовательное учреждение «Малошильнинская средняя общеобразовательная школа» Тукаевского муниципального района Республики Татарстан","Богомолова","Регина","Николаевна","Богомолова Регина Николаевна",7,7,57.5,75,null,"Галимуллин Расих Салимович","МБОУ «Малошильнинская СОШ» Тукаевского муниципального района РТ"]
[50,"Чистопольский район","Муниципальное бюджетное общеобразовательное учреждение « Гимназия № 3» Чистопольского муниципального района Республики Татарстан","Мезикова","Полина","Сергеевна","Мезикова Полина Сергеевна",7,7,63,75,null,"Скворцова Т.а.","МБОУ\"Гимназия №3\""]

{"sheet":"8 класс","index":4,"n_rows":50,"n_cols":14,"rows_kept":50,"merged":[[0,0,1,13]]}
["Список приглашённых на ЗЭ РОШ по русскому языку  8 класс. 2024-2025 уч.год "]
[]
["№","Муниципалитет","Полное наименование ОУ по уставу","Фамилия","Имя","Отчество","Фамилия Имя Отчество","Класс обучения","Класс участия","Итоговый балл","Максимальный балл","Победитель/призёр заключительного этапа 2023-2024 уч. г.","Фамилия, имя, отчество педагога, подготовившего участника олимпиады","Полное наименование образовательного учреждения (по уставу)"]
[1,"Азнакаевский район","Муниципальное бюджетное общеобразовательное учреждение «Средняя общеобразовательная школа №5 с углубленным изучением английского языка» города Азнакаево Азнакаевского муниципального района Республики Татарстан","Калимуллин","Ридель","Ринатович",{"$f":"CONCATENATE(D4,\" \",E4,\" \",F4)","v":"Калимуллин Ридель Ринатович"},8,8,57,75,null,"Галиева Гульназ Мунавировна","МБОУ \"СОШ №5 г. Азнакаево\" РТ"]
[2,"Азнакаевский район","Муниципальное бюджетное общеобразовательное учреждение \"Гимназия города Азнакаево\" Азнакаевского муниципального района Республики Татарстан","Шавалеева","Самира","Руслановна","Шавалеева Самира Руслановна",8,8,61,75,null,"Сабирова Светлана Наилевна","МБОУ \"Гимназия г.Азнакаево\""]
[3,"Азнакаевский район","Муниципальное бюджетное общеобразовательное учреждение \"Гимназия города Азнакаево\" Азнакаевского муниципального района Республики Татарстан","Сабиров","Самир","Ришатович","Сабиров Самир Ришатович",8,8,57,75,null,"Ахметова Ландыш Харисовна","МБОУ \"Гимназия г.Азнакаево\""]
[4,"Актанышский район","Муниципальное бюджетное общеобразовательное учреждение \"Актанышская средняя общеобразовательная школа №2 с углубленным изучением отдельных предметов\" Актанышского муниципального района Республики Татарстан","Латыпова","Раяна","Рузилевна","Латыпова Раяна Рузилевна",8,8,61,75,null,"Белоусова Мавлида Идрисовна","МБОУ \"Актанышская СОШ №2 с углубленным изучением отдельных предметов\""]
[5,"Арский район","МБОУ «Арская средняя общеобразовательная школа №1 им. В.Ф.Ежкова с углубленным изучением отдельных предметов» Арского муниципального района Республики Татарстан","Нигметзянова","Азалия","Руслановна","Нигметзянова Азалия Руслановна",8,8,null,null,"призёр","Исмагилова Алсу Нуретдиновна","МБОУ «Арская средняя общеобразовательная школа №1 им. В.Ф.Ежкова с углубленным изучением отдельных предметов» Арского муниципального района Республики Татарстан"]
[6,"Бугульминский район","МБОУ cредняя общеобразовательная школа №3 с углубленным изучением отдельных предметов Бугульминского муниципального района Республики Татарстан","Слесарев","Платон","Владимирович","Слесарев Платон Владимирович",8,8,null,null,"призёр","Кабанова Ольга Захаровна","МБОУ cредняя общеобразовательная школа №3 с углубленным изучением отдельных предметов Бугульминского муниципального района Республики Татарстан"]
[7,"Верхнеуслонский район","ГАОУ «Школа Иннополис»","Каримова","Амелия","Раисовна","Каримова Амелия Раисовна",8,8,null,null,"призёр","Борисова Лейсан Вакиловна","ГАОУ «Школа Иннополис»"]
[8,"Верхнеуслонский район","Государственное автономное образовательное учреждение  \"Лицей Иннополис\"","Николаев","Максим","Антонович","Николаев Максим Антонович",8,8,62,75,null,"Тихонова Татьяна Николаевна","ГАОУ \"Лицей Иннополис\""]
[9,"Заинский район","Муниципальное  бюджетное общеобразовательное учреждение \"Заинская средняя общеобразовательная школа №3\" Заинского муниципального района Республики Татарстан","Каримуллина","Диляра","Ильсуровна","Каримуллина Диляра Ильсуровна",8,8,57,75,null,"Помельцева Елена Сергеевна","МБОУ \"ЗСОШ №3\""]
[10,"Заинский район","Муниципальное бюджетное общеобразовательное учреждение  \"Заинская средняя общеобразовательная школа №6\" Заинского муниципального района Республики Татарстан","Артемьевна","Яна","Дмитриевна","Артемьевна Яна Дмитриевна",8,8,56,75,null,"Апчаева Юлия Ильинична","МБОУ \"ЗСОШ №6\""]
[11,"Зеленодольский район","МБОУ «Гимназия №3 Зеленодольского муниципального района Республики Татарстан»","Фризина","Мария","Владиславовна","Фризина Мария Владиславовна",8,8,null,null,"призёр","Дуньшакова Татьяна Николаевна","МБОУ «Гимназия №3 Зеленодольского муниципального района Республики Татарстан»"]
[12,"Казань, Авиастроительный район","МБОУ «Гимназия №36» Авиастроительного района г.Казани","Родионова","Елизавета","Сергеевна","Родионова Елизавета Сергеевна",8,8,null,null,"призёр","Ильина Наталья Сергеевна","МБОУ «Средняя общеобразовательная школа №36» Авиастроительного района г.Казани"]
[13,"Казань, Авиастроительный район","МБОУ «Гимназия №36» Авиастроительного района г.Казани","Чугунов","Арсений","Сергеевич","Чугунов Арсений Сергеевич",8,8,null,null,"призёр","Рябова Марина Александровна","МБОУ «Средняя общеобразовательная школа №36» Авиастроительного района г.Казани"]
[14,"Казань, Вахитовский район","МАОУ «Лицей №131« Вахитовского района г.Казани","Хузин","Камиль","Айратович","Хузин Камиль Айратович",8,8,null,null,"победитель","Ленская Марина Сергеевна","МАОУ «Лицей №131« Вахитовского района г.Казани"]
[15,"Казань, Вахитовский район","МАОУ «Лицей №131« Вахитовского района г.Казани","Бикеев","Эдуард","Игоревич","Бикеев Эдуард Игоревич",8,8,null,null,"призёр","Ющик Анастасия Юрьевна ","МБОУ «Гимназия №126» Советского района г.Казани"]
[16,"Казань, Вахитовский район","МАОУ «Лицей №131« Вахитовского района г.Казани","Зеленихин","Тимур","Ильич","Зеленихин Тимур Ильич",8,8,null,null,"призёр","Ющик Анастасия Юрьевна ","МБОУ «Средняя общеобразовательная школа №85 с углубленным изучением отдельных предметов» Ново-Савиновского района г.Казани"]
[17,"Казань, Вахитовский район","ОШИ «Лицей имени Н.И.Лобачевского» Вахитовского района г. Казани","Ахметшина","Камалия","Рустамовна","Ахметшина Камалия Рустамовна",8,8,null,null,"призёр","Первеева Екатерина Валерьевна","ОШИ «Лицей имени Н.И.Лобачевского» Вахитовского района г. Казани"]
[18,"Казань, Вахитовский район","МАОУ «Лицей №131« Вахитовского района г.Казани","Хакимова","Айгуль","Ильнуровна","Хакимова Айгуль Ильнуровна",8,8,null,null,"призёр","Ленская Марина Сергеевна","МАОУ «Лицей №131« Вахитовского района г.Казани"]
[19,"Казань, Московский район","МБОУ «Татарская гимназия №2 имени Шигабутдина Марджани при Казанском Федеральном Университете» Московского района г.Казани","Муртазина","Самира","Руслановна","Муртазина Самира Руслановна",8,8,null,null,"призёр","Латыфуллин Шамиль Ильмирович","МБОУ «Татарская гимназия №2 имени Шигабутдина Марджани при Казанском Федеральном Университете» Московского района г.Казани"]
[20,"Кировский район","Муниципальное автономное общеобразовательное учреждение \"Гимназия-интернат №4\" Кировского района г.Казани","Гараева","Малика","Марселевна","Гараева Малика Марселевна",8,8,62,75,null,"Колесникова Алсу Рашитовна","МАОУ \"Гимназия-интернат №4\""]
[21,"Набережные Челны","МАОУ города Набережные Челны «Гимназия №77»","Коровина","Анна","Александровна","Коровина Анна Александровна",8,8,null,null,"призёр","Владыко Светлана Андреевна","МАОУ города Набережные Челны «Гимназия №77»"]
[22,"Набережные Челны","МБОУ «Гимназия №26» города Набережные Челны","Садыкова","Амина","Римовна","Садыкова Амина Римовна",8,8,null,null,"призёр","Макария Ксения Николаевна","МБОУ «Гимназия №26» города Набережные Челны"]
[23,"Набережные Челны","МАОУ города Набережные Челны «Лицей № 78 им. А.С.Пушкина»","Никитенко","Диана","Романовна","Никитенко Диана Романовна",8,8,null,null,"призёр","Павлова Виктория Геннадиевна","МАОУ города Набережные Челны «Лицей № 78 им. А.С.Пушкина»"]
[24,"Набережные Челны","МБОУ «Гимназия №26» города Набережные Челны","Демин","Иван","Денисович","Демин Иван Денисович",8,8,null,null,"призёр","Тихомирова Гульсира Бегжановна","МБОУ «Гимназия №26» города Набережные Челны"]
[25,"Набережные Челны","МАОУ города Набережные Челны «Гимназия №77» ","Хабибуллин","Ильдар","Ильдусович","Хабибуллин Ильдар Ильдусович",8,8,null,null,"призёр","Владыко Светлана Андреевна","МАОУ города Набережные Челны «Гимназия №77» "]
[26,"Набережные Челны","МАОУ города Набережные Челны «Средняя общеобразовательная школа №35 с углубленным изучением отдельных предметов»","Хуснуллин","Эмиль","Эдуардович","Хуснуллин Эмиль Эдуардович",8,8,null,null,"призёр","Яруллина Ильгина Ильдусовна","МАОУ города Набережные Челны «Средняя общеобразовательная школа №35 с углубленным изучением отдельных предметов»"]
[27,"Нижнекамский район","МБОУ «Гимназия №22» Нижнекамского муниципального района Республики Татарстан","Гаврилова","София","Семеновна","Гаврилова София Семеновна",8,8,null,null,"призёр","Юрочкина Екатерина Андреевна","МБОУ «Гимназия №22» Нижнекамского муниципального района Республики Татарстан"]
[28,"Нижнекамский район","МБОУ «Лицей №35» Нижнекамского муниципального района Республики Татарстан","Ярема","Мария","Антоновна","Ярема Мария Антоновна",8,8,null,null,"призёр","Васильева Светлана Александровна","МБОУ «Лицей №35» Нижнекамского муниципального района Республики Татарстан"]
[29,"Нижнекамский район","Муниципальное бюджетное общеобразовательное учреждение «Лицей №35» Нижнекамского муниципального района Республики Татарстан","Баева","София","Владиславовна","Баева София Владиславовна",8,8,59.5,75,null,"Васильева Светлана Александровна","Муниципальное бюджетное общеобразовательное учреждение \"Лицей № 35\"\" Нижнекамского муниципального района Республики Татарстан\""]
[30,"Нурлатский район","МАОУ \"СОШ № 9\" г.Нурлат","Гиниятуллин","Салават","Рустемович","Гиниятуллин Салават Рустемович",8,8,57,75,null,"Макеева Марина Петровна","МАОУ \"СОШ № 9\" г. Нурлат РТ"]
[31,"Нурлатский район","Муниципальное автономное общеобразовательное учреждение \"Нурлатская гимназия им. М.Е. Сергеева» г.Нурлат Республики Татарстан","Пайгерчева","Карина","Николаевна","Пайгерчева Карина Николаевна",8,8,55,75,null,"Колесникова Елена Анатольевна"]
[32,"Пестречинский район","МБОУ \"Ленино-Кокушкинская СОШ\"","Блаченова","Оксана","Владимировна",{"$f":"CONCATENATE(D35,\" \",E35,\" \",F35)","v":"Блаченова Оксана Владимировна"},8,8,60,75,null,"Андреева Лариса Николаевна","Муниципальное бюджетное образовательное учреждение \"Ленино-Кокушкинская средняя общеобразовательная школа\" с. Ленино-Кокушкино Пестречинского муниципального района"]
[33,"Пестречинский район","МБОУ Технологический Лицей \"Алгоритм\"","Заболотских","Кирилл","Александрович","Заболотских Кирилл Александрович",8,8,64,75,null,"Хайруллина Сирина Ильгизовна","Муниципальное бюджетное общеобразовательное учреждение \"Технологический лицей \"Алгоритм\" д.Куюки Пестречинского муниципального района"]
[34,"Приволжский район","Муниципальное автономное общеобразовательное учреждение \"Гимназия №19\" Приволжского района г. Казани","Юсупова","Сафира","Рустемовна","Юсупова Сафира Рустемовна",8,8,60,75,null,"Нурутдинова Галия Юнусовна","МАОУ \"Гимназия №19\""]
[35,"Приволжский район","Муниципальное бюджетное общеобразовательное учреждение \"Средняя обшеобразовательная школа №88\" Приволжского района г. Казани","Заяц","Павел","Алексеевич","Заяц Павел Алексеевич",8,8,60,75,null,"Ипоева Алина Алексеевна","МБОУ \"Школа №88\""]
[36,"Сабинский район","МБОУ «Средняя общеобразовательная школа-интернат с углубленным изучением отдельных предметов для одаренных детей» Сабинского муниципального района Республики Татарстан","Халимова","Муслима","Радисовна","Халимова Муслима Радисовна",8,8,null,null,"призёр","Байкеева Гульнур Габделгазизовна","МБОУ «Средняя общеобразовательная школа-интернат с углубленным изучением отдельных предметов для одаренных детей» Сабинского муниципального района Республики Татарстан"]
[37,"Сабинский район","Муниципальное бюджетное общеобразовательное учреждение «Гимназия п.г.т. Богатые Сабы Сабинского муниципального района Республики Татарстан»","Шаймарданова","Алия","Айнуровна","Шаймарданова Алия Айнуровна",8,8,65.5,75,null,"Ермолаева Ляйля Рашитовна","Муниципальное бюджетное общеобразовательное учреждение \"Гимназия п.г.т. Богатые Сабы Сабинского муниципального района Республики Татарстан\""]
[38,"Сабинский район","Муниципальное бюджетное общеобразовательное учреждение «Центр образования \"Оникс\" для одаренных детей»  Сабинского муниципального района Республики Татарстан","Гарифуллина","Алина","Раилевна","Гарифуллина Алина Раилевна",8,8,65.5,75,null,"Байкеева Гульнур Габделгазизовна","Муниципальное бюджетное общеобразовательное учреждение «Центр образования \"Оникс\" для одаренных детей» Сабинского муниципального района Республики Татарстан"]
[39,"Тетюшский район","Муниципальное бюджетное общеобразовательное учреждение «Тетюшская средняя общеобразовательная школа №1 имени Героя Советского Союза Ханжина Павла Семеновича» Тетюшского муниципального района Республики Татарстан","Ризаева","Рушана","Фахриддиновна","Ризаева Рушана Фахриддиновна",8,8,61,75,null,"Гасимова Светлана Иргизовна","МБОУ \"Тетюшская СОШ №1 им.Ханжина П.С.\" Тетюшского МР РТ"]
[40,"Тетюшский район","Муниципальное бюджетное общеобразовательное учреждение «Тетюшская средняя общеобразовательная школа №1 имени Героя Советского Союза Ханжина Павла Семеновича» Тетюшского муниципального района Республики Татарстан","Демидова","Валентина","Вячеславовнаж","Демидова Валентина Вячеславовнаж",8,8,63,75,null,"Гасимова Светлана Иргизовна","МБОУ \"Тетюшская СОШ №1 им.Ханжина П.С.\" Тетюшского МР РТ"]
[41,"Тукаевский район","Муниципальное бюджетное общеобразовательное учреждение «Средняя общеобразовательная школа пос. Новый» Тукаевского муниципального района РТ","Артемьева","Алина","Радиковна","Артемьева Алина Радиковна",8,8,59,75,null,"Ганиева Марина Геннадьевна","МБОУ \"СОШ п.Новый\" Тукаевского муниципального района РТ"]
[42,"Чистопольский район","Муниципальное бюджетное общеобразовательное учреждение « Гимназия № 1» Чистопольского муниципального района Республики Татарстан","Акифьева","Янина","Сергеевна","Акифьева Янина Сергеевна",8,8,57.5,75,null,"Голубева Н.в.","МБОУ \"Гимназия №1\""]
[43,"Чистопольский район","Муниципальное бюджетное общеобразовательное учреждение « Гимназия № 1» Чистопольского муниципального района Республики Татарстан","Гребенщикова","Елизавета","Дмитриевна","Гребенщикова Елизавета Дмитриевна",8,8,58,75,null,"Голубева Н.в.","МБОУ \"Гимназия №1\""]
[44,"Чистопольский район","Муниципальное бюджетное общеобразовательное учреждение « Гимназия № 1» Чистопольского муниципального района Республики Татарстан","Пьянов","Александр","Григорьевич","Пьянов Александр Григорьевич",8,8,56,75,null,"Шилова Е.м.","МБОУ \"Гимназия №1\""]
[45,"Чистопольский район","Муниципальное бюджетное общеобразовательное учреждение « Лицей № 1» Чистопольского муниципального района Республики Татарстан","Макарова","Юлия","Львовна","Макарова Юлия Львовна",8,8,55,75,null,"Малолеткова Вера Александровна"]
[46,"Ютазинский район","МБОУ «Уруссинская гимназия» Ютазинского муниципального района Республики Татарстан","Закирова","Амира","Ильдусовна",{"$f":"CONCATENATE(D49,\" \",E49,\" \",F49)","v":"Закирова Амира Ильдусовна"},8,8,{"$nulls":3},"Зиннатуллина Рамиля Халимовна","МБОУ «Уруссинская гимназия» Ютазинского муниципального района Республики Татарстан"]
[47,"Ютазинский район","МБОУ «Уруссинская гимназия» Ютазинского муниципального района Республики Татарстан","Харисова","Камилла","Ленаровна",{"$f":"CONCATENATE(D50,\" \",E50,\" \",F50)","v":"Харисова Камилла Ленаровна"},8,8,{"$nulls":3},"Зиннатуллина Рамиля Халимовна","МБОУ «Уруссинская гимназия» Ютазинского муниципального района Республики Татарстан"]